bitfinex/quotes_BTCUSD_20250110
["timestamp","ask_amount","ask_price","bid_price","bid_amount"]
[1736520269748,0.212224,94240.0,94232.0,0.0001702]
[1736520270186,0.21221,94246.0,94232.0,0.0001702]
[1736520270409,0.01232,94272.0,94233.0,0.10429976]
[1736520270674,0.01232,94272.0,94233.0,0.424477]
[1736520270675,0.212211,94246.0,94233.0,0.424477]
[1736520271091,0.10429976,94271.0,94234.0,0.10429976]
[1736520271302,0.29959497,94260.0,94232.0,0.0081702]
[1736520271509,0.212236,94235.0,94232.0,0.0081702]
[1736520271722,0.362239,94233.0,94232.0,0.0081702]
[1736520271939,0.46653876,94233.0,94232.0,0.0081702]
[1736520272366,0.46653876,94233.0,94232.0,0.0001702]
[1736520273045,0.212239,94233.0,94232.0,0.0001702]
[1736520273232,0.46653876,94233.0,94232.0,0.0001702]
[1736520273483,0.54941614,94233.0,94232.0,0.0001702]
[1736520273903,0.46753876,94233.0,94232.0,0.0001702]
[1736520274313,0.46653876,94233.0,94232.0,0.0001702]
[1736520275593,0.46953876,94233.0,94232.0,0.0001702]
[1736520275828,0.46653876,94233.0,94232.0,0.0001702]
[1736520276709,0.212232,94237.0,94232.0,0.0001702]
[1736520276926,0.00132662,94236.0,94232.0,0.0011702]
[1736520277171,0.212225,94240.0,94232.0,0.0011702]
[1736520277386,0.212199,94251.0,94232.0,0.0011702]
[1736520277612,0.212216,94244.0,94232.0,0.2134102]
[1736520277830,0.02156908,94281.0,94235.0,0.023]
[1736520278039,0.39967997,94310.0,94268.0,0.21216]
[1736520278253,0.042501,94305.0,94269.0,0.10429976]
[1736520278487,0.212083,94303.0,94282.0,0.212127]
[1736520278704,0.00132576,94302.0,94283.0,0.10429976]
[1736520278915,0.212079,94305.0,94289.0,0.212112]
[1736520279124,8.5e-05,94310.0,94297.0,0.212095]
[1736520279363,0.00132554,94309.0,94291.0,0.212109]
[1736520279542,0.212072,94308.0,94295.0,0.212098]
[1736520279801,0.212081,94304.0,94292.0,0.212107]
[1736520280002,0.212075,94306.0,94292.0,0.212107]
[1736520280213,0.212086,94302.0,94288.0,0.212114]
[1736520280421,0.00132569,94301.0,94282.0,0.0009876]
[1736520280630,0.29967997,94310.0,94282.0,0.0009876]
[1736520280631,0.212086,94302.0,94288.0,0.212115]
[1736520280866,8.5e-05,94310.0,94289.0,0.10429976]
[1736520281079,8.5e-05,94310.0,94305.0,0.212076]
[1736520281311,8.5e-05,94310.0,94307.0,0.212073]
[1736520281540,0.29959497,94350.0,94306.0,0.10429976]
[1736520281541,0.01051473,94356.0,94311.0,0.15]
[1736520281750,0.1,94387.0,94351.0,0.211973]
[1736520281956,0.1,94387.0,94344.0,0.079]
[1736520282225,0.31180017,94390.0,94344.0,0.079]
[1736520282226,0.29968017,94390.0,94345.0,0.10429976]
[1736520282434,0.211911,94379.0,94347.0,0.211983]
[1736520282646,0.29959497,94380.0,94346.0,0.0454]
[1736520282647,0.21194,94366.0,94346.0,0.0454]
[1736520282860,0.00132483,94365.0,94346.0,0.0454]
[1736520283070,0.211921,94375.0,94361.0,0.21195]
[1736520283285,0.211921,94375.0,94347.0,0.31628076]
[1736520283509,0.00132473,94374.0,94347.0,0.31628076]
[1736520283712,0.00140986,94367.0,94346.0,0.0454]
[1736520283988,0.00140986,94367.0,94349.0,0.211976]
[1736520284204,8.51e-05,94367.0,94351.0,0.211974]
[1736520284421,8.51e-05,94367.0,94346.0,0.003]
[1736520284422,8.51e-05,94367.0,94352.0,0.10429976]
[1736520284646,8.51e-05,94367.0,94360.0,0.211952]
[1736520284870,8.51e-05,94367.0,94366.0,0.21194]
[1736520285094,8.51e-05,94367.0,94366.0,0.31623976]
[1736520286384,8.51e-05,94367.0,94366.0,0.34823976]
[1736520286994,0.00016282,94400.0,94389.0,0.1515]
[1736520287214,0.15,94440.0,94398.0,0.25429976]
[1736520287465,0.15,94440.0,94393.0,0.2]
[1736520287466,0.21178,94438.0,94414.0,0.211832]
[1736520287703,0.15,94440.0,94414.0,0.33913176]
[1736520288122,0.00132369,94439.0,94414.0,0.31613176]
[1736520288332,0.0013237,94439.0,94414.0,0.31613176]
[1736520288543,0.0013237,94439.0,94414.0,0.33913176]
[1736520288770,0.0013237,94439.0,94414.0,0.10429976]
[1736520288988,0.211801,94428.0,94407.0,0.211848]
[1736520289201,0.211801,94428.0,94400.0,0.211863]
[1736520289202,0.211801,94428.0,94409.0,0.211844]
[1736520289401,0.211801,94428.0,94410.0,0.10429976]
[1736520289639,0.211801,94428.0,94414.0,0.009]
[1736520289860,0.211817,94421.0,94406.0,0.21185]
[1736520290086,0.15,94440.0,94414.0,0.009]
[1736520290087,0.22711746,94415.0,94414.0,0.009]
[1736520290290,0.423739,94398.0,94369.0,0.211933]
[1736520290500,0.211873,94396.0,94377.0,0.211914]
[1736520290713,0.14085683,94415.0,94365.0,0.0767]
[1736520290714,0.10562411,94395.0,94365.0,0.0767]
[1736520290932,0.00132455,94394.0,94366.0,0.31623976]
[1736520291166,0.211893,94387.0,94377.0,0.0009904]
[1736520291423,0.15,94409.0,94377.0,0.0009904]
[1736520291634,0.15,94407.0,94373.0,0.211924]
[1736520291848,0.211911,94379.0,94366.0,0.10429976]
[1736520292056,0.29959497,94400.0,94367.0,0.211938]
[1736520292285,0.15,94398.0,94366.0,0.0009935]
[1736520292541,0.212893,94387.0,94366.0,0.0009935]
[1736520292801,0.211932,94370.0,94366.0,0.0009935]
[1736520293059,0.211936,94368.0,94366.0,0.0009935]
[1736520293287,0.21194,94366.0,94339.0,0.0461]
[1736520293512,0.21194,94366.0,94350.0,0.211976]
[1736520293752,0.00132469,94365.0,94346.0,0.0009971]
[1736520294056,0.211972,94352.0,94346.0,0.0009971]
[1736520294309,0.15,94379.0,94346.0,0.0009971]
[1736520294530,0.0224012,94385.0,94328.0,0.2949938]
[1736520294531,0.211966,94355.0,94328.0,0.2949938]
[1736520294783,0.15,94369.0,94329.0,0.10429976]
[1736520294784,0.211957,94359.0,94329.0,0.10429976]
[1736520295042,0.29959497,94370.0,94348.0,0.211979]
[1736520295252,0.009,94370.0,94366.0,0.001]
[1736520295460,0.004,94368.0,94354.0,0.211965]
[1736520295670,0.004,94368.0,94354.0,0.10429976]
[1736520295888,0.21186,94402.0,94359.0,0.0478]
[1736520296110,0.211842,94410.0,94375.0,0.023]
[1736520296319,0.211781,94437.0,94383.0,0.10429976]
[1736520296537,0.44959497,94440.0,94399.0,0.023]
[1736520296538,0.00132394,94436.0,94399.0,0.023]
[1736520296961,0.00132394,94436.0,94399.0,0.2485]
[1736520296962,0.211806,94426.0,94399.0,0.2485]
[1736520297170,0.211807,94426.0,94399.0,0.2485]
[1736520297373,0.21178,94438.0,94399.0,0.2485]
[1736520297565,0.211791,94433.0,94399.0,0.2485]
[1736520297806,0.00132388,94432.0,94399.0,0.2485]
[1736520298234,0.15,94440.0,94399.0,0.2485]
[1736520298441,0.211801,94429.0,94399.0,0.2485]
[1736520298654,0.00132391,94428.0,94399.0,0.2485]
[1736520298883,0.15,94440.0,94399.0,0.2485]
[1736520298884,0.211779,94439.0,94399.0,0.2485]
[1736520299195,0.15,94440.0,94414.0,0.234832]
[1736520299441,0.00132383,94438.0,94414.0,0.234832]
[1736520299858,0.15,94440.0,94414.0,0.234832]
[1736520300071,0.0013237,94439.0,94414.0,0.234832]
[1736520300280,0.0013237,94439.0,94414.0,0.46613176]
[1736520300484,0.15,94440.0,94414.0,0.46613176]
[1736520300590,0.15,94440.0,94414.0,0.49113176]
[1736520300796,0.15,94440.0,94414.0,0.34113176]
[1736520301022,0.15,94440.0,94414.0,0.31813176]
[1736520301431,0.15,94440.0,94414.0,0.59113176]
[1736520301657,0.15,94440.0,94439.0,0.211776]
[1736520301859,0.15,94440.0,94439.0,0.39397576]
[1736520302061,0.15,94440.0,94439.0,0.56697576]
[1736520302272,9.8e-07,94440.0,94439.0,1.22307176]
[1736520302504,8.49e-05,94453.0,94452.0,0.361747]
[1736520302734,8.49e-05,94453.0,94452.0,1.96604676]
[1736520302936,8.49e-05,94453.0,94452.0,0.48904676]
[1736520303281,8.49e-05,94453.0,94452.0,0.10429976]
[1736520303689,8.49e-05,94453.0,94439.0,0.0869]
[1736520303907,8.49e-05,94453.0,94439.0,0.11529976]
[1736520304110,8.49e-05,94453.0,94439.0,0.32707476]
[1736520304311,8.49e-05,94453.0,94450.0,0.211752]
[1736520304557,8.49e-05,94453.0,94452.0,0.211747]
[1736520304762,8.49e-05,94453.0,94452.0,0.31604676]
[1736520304979,0.00011357,94482.0,94452.0,0.11329976]
[1736520305175,0.00011357,94482.0,94481.0,0.211682]
[1736520305366,0.00011357,94482.0,94481.0,0.10429976]
[1736520305693,0.211694,94476.0,94460.0,0.0751]
[1736520305901,2.064e-05,94482.0,94462.0,0.211725]
[1736520306107,2.064e-05,94482.0,94477.0,0.21169]
[1736520306323,0.00102064,94482.0,94479.0,0.211687]
[1736520306578,0.00102064,94482.0,94481.0,0.001]
[1736520306796,0.00102064,94482.0,94481.0,0.10529976]
[1736520307001,0.00102064,94482.0,94477.0,0.21169]
[1736520307212,2.064e-05,94482.0,94481.0,0.12729976]
[1736520307567,2.064e-05,94482.0,94481.0,0.45399976]
[1736520307774,0.0139635,94508.0,94507.0,0.211624]
[1736520307978,0.0139635,94508.0,94507.0,0.33892376]
[1736520308829,0.0139635,94508.0,94507.0,0.48892376]
[1736520309281,0.0139635,94508.0,94507.0,0.49792376]
[1736520309490,0.0139635,94508.0,94507.0,0.58892376]
[1736520309687,0.0140105,94508.0,94507.0,0.68892376]
[1736520309886,0.0140105,94508.0,94507.0,0.49992376]
[1736520310089,0.0140105,94508.0,94507.0,0.49092376]
[1736520310290,0.0140105,94508.0,94507.0,0.58892376]
[1736520310496,0.0140105,94508.0,94507.0,0.59792376]
[1736520310695,0.0140105,94508.0,94507.0,0.60092376]
[1736520310855,0.0140105,94508.0,94507.0,0.50092376]
[1736520311060,0.0140105,94508.0,94507.0,0.11629976]
[1736520311279,0.0140105,94508.0,94507.0,0.012]
[1736520311701,0.0140105,94508.0,94507.0,0.003]
[1736520311907,0.0140105,94508.0,94492.0,0.211655]
[1736520312117,0.0140105,94508.0,94507.0,0.009]
[1736520312315,0.0140105,94508.0,94507.0,0.005]
[1736520312726,0.01633326,94508.0,94507.0,0.005]
[1736520312934,0.01633326,94508.0,94465.0,0.0812]
[1736520313152,0.01533326,94508.0,94487.0,0.0009873]
[1736520313348,0.15,94506.0,94487.0,0.0009873]
[1736520313555,0.211652,94495.0,94477.0,0.423381]
[1736520313749,0.0140105,94508.0,94445.0,0.0794]
[1736520313750,0.02248813,94494.0,94445.0,0.0794]
[1736520314060,0.29959497,94480.0,94471.0,0.000995]
[1736520314233,0.211702,94472.0,94471.0,0.000995]
[1736520314436,0.29959497,94490.0,94436.0,0.211783]
[1736520314437,0.01192,94497.0,94440.0,0.44959497]
[1736520314636,0.01192,94497.0,94431.0,0.03141358]
[1736520314637,0.211709,94470.0,94442.0,0.10429976]
[1736520314838,0.10429976,94496.0,94444.0,0.211765]
[1736520315082,0.15,94507.0,94444.0,0.211765]
[1736520315083,0.211666,94489.0,94454.0,0.15]
[1736520315374,0.00132305,94488.0,94470.0,0.211705]
[1736520315504,0.211702,94473.0,94455.0,0.10429976]
[1736520315707,0.211702,94473.0,94427.0,0.1794]
[1736520315708,0.29959497,94470.0,94427.0,0.0794]
[1736520315956,0.29959497,94470.0,94407.0,0.3]
[1736520315957,0.211738,94456.0,94455.0,0.000988]
[1736520316124,0.10562322,94469.0,94442.0,0.004]
[1736520316125,0.211735,94458.0,94442.0,0.004]
[1736520316389,0.211714,94467.0,94443.0,0.10429976]
[1736520316573,0.211721,94464.0,94443.0,0.10429976]
[1736520316780,0.1295,94489.0,94444.0,0.211765]
[1736520316982,0.01192,94478.0,94445.0,0.10429976]
[1736520317182,0.00132337,94477.0,94445.0,0.10429976]
[1736520317392,0.10429976,94476.0,94445.0,0.10429976]
[1736520317542,0.211733,94459.0,94446.0,0.211761]
[1736520317746,0.211728,94461.0,94445.0,0.0009916]
[1736520317990,0.14008741,94489.0,94446.0,0.10429976]
[1736520318169,0.29959497,94490.0,94445.0,0.0009916]
[1736520318170,0.211664,94490.0,94474.0,0.211697]
[1736520318367,0.211681,94482.0,94466.0,0.211716]
[1736520318572,0.15,94498.0,94466.0,0.10429976]
[1736520318880,0.15,94496.0,94449.0,0.15]
[1736520319097,0.1056229,94497.0,94433.0,0.02116388]
[1736520319098,0.211669,94487.0,94451.0,0.15]
[1736520319254,0.29959497,94470.0,94450.0,0.21175]
[1736520319458,0.211725,94463.0,94436.0,0.01066551]
[1736520319690,0.211719,94465.0,94437.0,0.10429976]
[1736520319906,0.211707,94470.0,94451.0,0.211748]
[1736520320116,0.211711,94468.0,94452.0,0.211747]
[1736520320337,0.211716,94466.0,94452.0,0.211747]
[1736520320513,0.01192,94496.0,94453.0,0.10429976]
[1736520320710,0.01062742,94505.0,94457.0,0.023]
[1736520320990,0.00140834,94498.0,94485.0,0.211672]
[1736520321409,8.53e-05,94498.0,94486.0,0.10429976]
[1736520321899,8.53e-05,94498.0,94493.0,0.211655]
[1736520322106,8.53e-05,94498.0,94494.0,0.10429976]
[1736520322318,8.53e-05,94498.0,94482.0,0.211679]
[1736520322530,8.53e-05,94498.0,94450.0,0.0785]
[1736520322738,8.53e-05,94498.0,94485.0,0.211672]
[1736520322943,8.53e-05,94498.0,94496.0,0.211648]
[1736520323151,0.0060853,94498.0,94496.0,0.211648]
[1736520323592,0.0060853,94498.0,94491.0,0.211659]
[1736520323593,0.0060853,94498.0,94495.0,0.21165]
[1736520323796,0.0060853,94498.0,94486.0,0.10429976]
[1736520323797,8.53e-05,94498.0,94486.0,0.10429976]
[1736520324015,8.53e-05,94498.0,94497.0,0.211646]
[1736520324440,8.53e-05,94498.0,94494.0,0.211651]
[1736520324648,0.0060853,94498.0,94492.0,0.211655]
[1736520324852,0.0060853,94498.0,94479.0,0.0009901]
[1736520325022,0.211657,94493.0,94481.0,0.211682]
[1736520325237,0.211647,94497.0,94486.0,0.21167]
[1736520325593,8.53e-05,94498.0,94487.0,0.10429976]
[1736520325801,8.53e-05,94498.0,94497.0,0.211646]
[1736520325976,8.53e-05,94498.0,94494.0,0.211652]
[1736520326559,8.53e-05,94498.0,94484.0,0.211673]
[1736520326772,8.53e-05,94498.0,94479.0,0.0009849]
[1736520326973,0.1057079,94498.0,94479.0,0.0009849]
[1736520327183,8.53e-05,94498.0,94454.0,0.1]
[1736520327337,8.53e-05,94498.0,94467.0,0.023]
[1736520327541,8.53e-05,94498.0,94496.0,0.211648]
[1736520327747,8.53e-05,94498.0,94497.0,0.10429976]
[1736520328192,0.0040853,94498.0,94497.0,0.27729976]
[1736520328569,8.53e-05,94498.0,94497.0,0.27729976]
[1736520328798,0.0140105,94508.0,94497.0,0.27729976]
[1736520328799,0.0140105,94508.0,94507.0,0.361624]
[1736520329137,0.0140105,94508.0,94507.0,0.46592376]
[1736520329343,0.0140105,94508.0,94507.0,0.68892376]
[1736520329900,0.0140105,94508.0,94507.0,0.69934473]
[1736520330101,0.01068882,94508.0,94507.0,0.69934473]
[1736520330330,9.2e-07,94510.0,94509.0,0.35]
[1736520330542,9.2e-07,94510.0,94509.0,0.30938688]
[1736520330889,9.2e-07,94510.0,94509.0,0.27729976]
[1736520331082,9.2e-07,94510.0,94509.0,0.35429976]
[1736520331203,9.2e-07,94510.0,94509.0,0.25429976]
[1736520331410,9.2e-07,94510.0,94509.0,0.27729976]
[1736520331620,9.2e-07,94510.0,94509.0,0.38329976]
[1736520331873,9.2e-07,94510.0,94509.0,0.48329976]
[1736520332074,9.2e-07,94510.0,94509.0,0.41536308]
[1736520332271,9.2e-07,94510.0,94509.0,0.48629976]
[1736520332617,9.2e-07,94510.0,94509.0,0.48929976]
[1736520332839,8.53e-05,94536.0,94535.0,0.211561]
[1736520333061,8.53e-05,94536.0,94535.0,0.31586076]
[1736520333481,8.53e-05,94536.0,94535.0,0.56846076]
[1736520333693,8.53e-05,94536.0,94535.0,0.76846076]
[1736520333903,3e-07,94536.0,94535.0,0.80050137]
[1736520334254,3e-07,94536.0,94535.0,0.8109853]
[1736520334875,3e-07,94536.0,94535.0,0.8199853]
[1736520335091,0.2114952,94603.0,94556.0,0.1]
[1736520335293,8.52e-05,94603.0,94562.0,0.68880076]
[1736520335493,8.52e-05,94603.0,94598.0,0.211418]
[1736520335691,8.52e-05,94603.0,94599.0,0.27729976]
[1736520336175,8.52e-05,94603.0,94599.0,0.25429976]
[1736520336392,8.52e-05,94603.0,94599.0,0.31571776]
[1736520336884,8.52e-05,94603.0,94599.0,0.48871776]
[1736520337900,8.52e-05,94603.0,94599.0,0.49071776]
[1736520338119,8.52e-05,94603.0,94599.0,0.69071776]
[1736520338341,2e-07,94603.0,94602.0,0.65]
[1736520338551,2e-07,94603.0,94602.0,0.77729976]
[1736520338756,2e-07,94603.0,94602.0,1.97729976]
[1736520338883,2e-07,94603.0,94602.0,1.98921976]
[1736520339304,2e-07,94603.0,94602.0,2.06521976]
[1736520339504,2e-07,94603.0,94602.0,2.07321976]
[1736520339708,2e-07,94603.0,94602.0,2.08221976]
[1736520339905,2e-07,94603.0,94602.0,1.87029976]
[1736520340135,2e-07,94603.0,94602.0,1.98221976]
[1736520340336,2e-07,94603.0,94602.0,0.27129976]
[1736520340537,2e-07,94603.0,94602.0,0.12129976]
[1736520340773,2e-07,94603.0,94602.0,0.11329976]
[1736520341533,2e-07,94603.0,94602.0,0.10429976]
[1736520341731,2e-07,94603.0,94602.0,0.30429976]
[1736520341981,2e-07,94603.0,94602.0,0.36329976]
[1736520342187,8.52e-05,94631.0,94609.0,0.173]
[1736520342383,8.52e-05,94631.0,94608.0,0.1]
[1736520342384,8.52e-05,94631.0,94620.0,0.10429976]
[1736520342559,8.52e-05,94631.0,94602.0,0.01774381]
[1736520342560,0.211349,94630.0,94602.0,0.009]
[1736520342761,0.00132113,94629.0,94602.0,0.10429976]
[1736520342998,0.00132113,94629.0,94603.0,0.10429976]
[1736520343192,0.00132113,94629.0,94611.0,0.211391]
[1736520343395,8.52e-05,94631.0,94612.0,0.10429976]
[1736520343747,8.52e-05,94631.0,94613.0,0.10429976]
[1736520343953,8.52e-05,94631.0,94614.0,0.173]
[1736520344154,8.52e-05,94631.0,94627.0,0.211355]
[1736520344476,8.52e-05,94631.0,94625.0,0.21136]
[1736520344685,8.52e-05,94631.0,94625.0,0.31565976]
[1736520345026,8.52e-05,94631.0,94626.0,0.10429976]
[1736520345233,8.52e-05,94631.0,94586.0,0.1]
[1736520345437,8.52e-05,94631.0,94574.0,0.1]
[1736520345438,8.52e-05,94631.0,94627.0,0.004]
[1736520345657,8.52e-05,94631.0,94628.0,0.10429976]
[1736520345861,8.52e-05,94631.0,94619.0,0.211371]
[1736520346066,8.52e-05,94631.0,94612.0,0.0009969]
[1736520346237,0.211349,94630.0,94626.0,0.004]
[1736520346443,8.52e-05,94631.0,94626.0,0.004]
[1736520346652,0.211349,94630.0,94626.0,0.004]
[1736520346916,0.1,94624.0,94591.0,0.000982]
[1736520347130,0.21143,94594.0,94591.0,0.000982]
[1736520347330,0.21143,94594.0,94558.0,0.27324486]
[1736520347331,0.047,94609.0,94558.0,0.27324486]
[1736520347530,0.00132141,94608.0,94579.0,0.211463]
[1736520347735,0.00132141,94608.0,94559.0,1.5]
[1736520347736,0.10429976,94607.0,94575.0,0.211471]
[1736520347956,0.00132161,94606.0,94576.0,0.10429976]
[1736520348174,0.31570676,94605.0,94579.0,0.0009854]
[1736520348376,0.211456,94582.0,94579.0,0.0009854]
[1736520348581,0.00132162,94604.0,94534.0,0.4]
[1736520348582,0.211444,94588.0,94571.0,0.211479]
[1736520348791,0.1,94607.0,94535.0,0.0693685]
[1736520348792,0.29959497,94620.0,94573.0,0.10429976]
[1736520348990,0.00132149,94608.0,94595.0,0.211427]
[1736520349196,0.001,94606.0,94591.0,0.211435]
[1736520349428,0.2127264,94605.0,94573.0,0.0009979]
[1736520349620,0.001,94606.0,94574.0,0.10429976]
[1736520349826,0.211405,94605.0,94592.0,0.211433]
[1736520350025,0.001,94606.0,94592.0,0.31573276]
[1736520350299,0.001,94606.0,94566.0,0.211491]
[1736520350300,0.001,94606.0,94596.0,0.10429976]
[1736520350523,0.001,94606.0,94605.0,0.211405]
[1736520350696,0.00140622,94641.0,94605.0,0.10429976]
[1736520350697,0.0013211,94629.0,94605.0,0.10429976]
[1736520350932,0.29959497,94620.0,94587.0,0.0009902]
[1736520351133,0.21141,94603.0,94588.0,0.211443]
[1736520351504,0.211421,94598.0,94596.0,0.009]
[1736520351706,0.212403,94606.0,94596.0,0.009]
[1736520351707,0.211405,94605.0,94596.0,0.009]
[1736520351946,0.00132145,94604.0,94596.0,0.009]
[1736520352358,0.0467,94611.0,94596.0,0.009]
[1736520352359,0.01037341,94629.0,94596.0,0.10429976]
[1736520352608,0.01037341,94629.0,94599.0,0.211417]
[1736520352609,0.211386,94614.0,94599.0,0.211417]
[1736520352802,0.0816,94628.0,94600.0,0.31571476]
[1736520353136,0.211323,94642.0,94600.0,0.31571476]
[1736520353137,0.211314,94646.0,94626.0,0.211356]
[1736520353347,0.211312,94647.0,94627.0,0.10429976]
[1736520353555,0.211312,94647.0,94628.0,0.422706]
[1736520353767,0.211312,94647.0,94630.0,0.211349]
[1736520353982,0.211304,94651.0,94630.0,0.31564876]
[1736520354192,0.00140599,94641.0,94618.0,0.211374]
[1736520354405,0.21133,94639.0,94626.0,0.001]
[1736520354612,0.00132099,94638.0,94619.0,0.10429976]
[1736520354820,8.52e-05,94641.0,94622.0,0.10429976]
[1736520355029,0.0010852,94631.0,94630.0,0.008]
[1736520355238,0.0010852,94631.0,94630.0,0.11229976]
[1736520355443,8.52e-05,94631.0,94630.0,0.10429976]
[1736520355650,0.0010852,94631.0,94630.0,0.10429976]
[1736520356276,8.52e-05,94631.0,94630.0,0.10429976]
[1736520356471,8.52e-05,94631.0,94630.0,0.10629976]
[1736520356677,8.52e-05,94641.0,94631.0,0.173]
[1736520356886,8.52e-05,94641.0,94630.0,0.27929976]
[1736520356887,8.52e-05,94641.0,94640.0,0.211327]
[1736520357092,8.52e-05,94641.0,94640.0,0.31562676]
[1736520357645,8.52e-05,94641.0,94640.0,0.33862676]
[1736520357851,8.52e-05,94641.0,94640.0,0.31562676]
[1736520358079,8.52e-05,94641.0,94640.0,0.46562676]
[1736520358502,8.52e-05,94641.0,94640.0,0.48862676]
[1736520358716,2e-07,94643.0,94642.0,0.461322]
[1736520358916,2e-07,94643.0,94642.0,2.06562176]
[1736520359119,2e-07,94643.0,94642.0,0.46562176]
[1736520359324,4.6e-05,94650.0,94642.0,0.46562176]
[1736520359325,5e-08,94645.0,94642.0,0.46562176]
[1736520359613,5e-08,94645.0,94644.0,0.25429976]
[1736520360230,4.6e-05,94650.0,94644.0,0.15319976]
[1736520360435,8.51e-05,94669.0,94656.0,0.1]
[1736520360678,8.51e-05,94669.0,94668.0,0.31556376]
[1736520360879,8.51e-05,94669.0,94668.0,1.81556376]
[1736520361056,8.51e-05,94669.0,94668.0,0.31556376]
[1736520361602,8.51e-05,94669.0,94650.0,0.0009832]
[1736520361799,0.211298,94653.0,94650.0,0.0009832]
[1736520362038,0.29959497,94660.0,94650.0,0.0009832]
[1736520362235,0.422597,94653.0,94650.0,0.0009832]
[1736520362441,0.211315,94645.0,94644.0,0.006]
[1736520362640,0.00132081,94652.0,94597.0,0.082]
[1736520362641,0.211335,94637.0,94597.0,0.082]
[1736520362863,0.0118,94659.0,94610.0,0.10429976]
[1736520362994,0.211289,94657.0,94650.0,0.002]
[1736520363196,0.00132084,94656.0,94650.0,0.002]
[1736520363396,0.00132084,94656.0,94642.0,0.009]
[1736520363397,0.211312,94647.0,94642.0,0.009]
[1736520363598,0.211315,94645.0,94642.0,0.009]
[1736520363829,0.21132,94643.0,94642.0,0.009]
[1736520364145,0.21132,94643.0,94585.0,0.3]
[1736520364146,0.211354,94628.0,94611.0,0.212388]
[1736520364300,0.211356,94627.0,94612.0,0.10429976]
[1736520364500,0.211356,94627.0,94613.0,0.211387]
[1736520364716,0.21135,94630.0,94617.0,0.211377]
[1736520364923,0.21135,94630.0,94597.0,0.003]
[1736520364924,0.01067327,94664.0,94618.0,0.10429976]
[1736520365117,0.29959497,94650.0,94618.0,0.10429976]
[1736520365377,0.001,94647.0,94628.0,0.211353]
[1736520365595,0.001,94647.0,94618.0,0.000986]
[1736520365596,0.29959497,94640.0,94618.0,0.000986]
[1736520365777,0.15,94620.0,94618.0,0.000986]
[1736520365983,0.15,94620.0,94579.0,0.211461]
[1736520365984,0.211376,94618.0,94583.0,0.211452]
[1736520366184,0.211431,94594.0,94575.0,0.211471]
[1736520366393,0.211431,94594.0,94551.0,0.02142996]
[1736520366394,0.211442,94589.0,94583.0,0.0009829]
[1736520366599,0.00132174,94588.0,94583.0,0.0009829]
[1736520366816,0.00132174,94588.0,94570.0,0.01072523]
[1736520366942,0.0493,94600.0,94577.0,0.211466]
[1736520367191,0.21143,94594.0,94577.0,0.211466]
[1736520367402,0.11065869,94610.0,94582.0,0.211456]
[1736520367403,0.0118,94610.0,94582.0,0.211456]
[1736520367600,0.29959497,94600.0,94570.0,0.01072523]
[1736520367800,0.211442,94589.0,94569.0,0.211485]
[1736520368008,0.00132171,94588.0,94569.0,0.211485]
[1736520368203,0.00132171,94588.0,94574.0,0.211474]
[1736520368500,0.211442,94589.0,94569.0,0.211483]
[1736520368702,0.00132172,94588.0,94569.0,0.0009896]
[1736520369228,0.00132172,94588.0,94569.0,0.2124726]
[1736520369660,0.001,94589.0,94573.0,0.211475]
[1736520369838,0.001,94589.0,94588.0,0.31574276]
[1736520370058,0.004,94600.0,94589.0,0.211441]
[1736520370245,0.004,94600.0,94574.0,0.211474]
[1736520370246,0.0493,94620.0,94590.0,1.60429976]
[1736520370487,0.0118,94621.0,94590.0,1.60429976]
[1736520370488,0.211377,94618.0,94590.0,1.60429976]
[1736520370697,0.0118,94621.0,94590.0,1.60429976]
[1736520370698,0.211392,94611.0,94590.0,1.60429976]
[1736520370916,0.211374,94619.0,94590.0,1.60429976]
[1736520371119,0.29959497,94610.0,94588.0,0.004]
[1736520371324,0.10562122,94609.0,94588.0,0.004]
[1736520371532,0.211439,94590.0,94587.0,0.0001702]
[1736520371733,0.212443,94588.0,94587.0,0.0001702]
[1736520372340,0.211443,94588.0,94587.0,0.0001702]
[1736520372551,0.1,94624.0,94587.0,0.10446996]
[1736520372753,0.003,94609.0,94592.0,0.211433]
[1736520372954,0.003,94609.0,94587.0,0.0001702]
[1736520372955,0.003,94609.0,94593.0,0.10429976]
[1736520373174,0.003,94609.0,94598.0,0.21142]
[1736520373381,0.00132122,94621.0,94589.0,0.211441]
[1736520373382,0.29959497,94610.0,94589.0,0.211441]
[1736520373585,0.29959497,94600.0,94588.0,0.0019892]
[1736520373795,0.422864,94593.0,94588.0,0.0019892]
[1736520374013,0.25,94589.0,94588.0,0.0009892]
[1736520374217,0.211479,94572.0,94566.0,0.27318135]
[1736520374422,0.21149,94567.0,94566.0,0.27318135]
[1736520374969,0.211505,94561.0,94547.0,0.211534]
[1736520375173,0.0118,94568.0,94555.0,0.211516]
[1736520375372,0.21149,94567.0,94555.0,0.211516]
[1736520375623,0.0118,94568.0,94550.0,0.10429976]
[1736520375848,0.01312195,94568.0,94542.0,0.0009837]
[1736520376053,0.11742171,94568.0,94542.0,0.0009837]
[1736520376258,0.21149,94567.0,94525.0,0.27318135]
[1736520376391,0.211501,94562.0,94550.0,0.31582776]
[1736520376590,0.211513,94557.0,94526.0,0.15]
[1736520376807,0.211527,94551.0,94519.0,0.0779847]
[1736520377046,0.00132216,94550.0,94530.0,0.2117402]
[1736520377241,0.211522,94553.0,94530.0,0.2117402]
[1736520377443,0.211522,94553.0,94535.0,0.21156]
[1736520377444,0.211526,94551.0,94535.0,0.21156]
[1736520377645,0.002,94562.0,94535.0,0.21156]
[1736520377871,0.21152,94554.0,94531.0,0.21157]
[1736520378074,0.211523,94552.0,94536.0,0.211559]
[1736520378276,0.211528,94550.0,94535.0,0.0009827]
[1736520379122,0.211528,94550.0,94530.0,0.0001702]
[1736520379586,0.213528,94550.0,94530.0,0.0001702]
[1736520379904,0.211528,94550.0,94530.0,0.0001702]
[1736520380110,0.49032633,94550.0,94530.0,0.0001702]
[1736520380401,0.41782776,94550.0,94549.0,0.0021702]
[1736520380515,0.66782776,94550.0,94549.0,0.0021702]
[1736520380750,0.66582776,94550.0,94549.0,0.0001702]
[1736520380953,0.68855236,94550.0,94549.0,0.0001702]
[1736520381148,0.69055236,94550.0,94549.0,0.0001702]
[1736520381355,0.21157,94531.0,94530.0,0.0001702]
[1736520381984,0.31586976,94531.0,94530.0,0.0001702]
[1736520382174,0.21157,94531.0,94530.0,0.0001702]